bitfinex-derivatives/quotes_SOLF0:USTF0_20250113
["timestamp","ask_amount","ask_price","bid_price","bid_amount"]
[1736806250178,20.69996124,183.0,182.98,6.1]
[1736806250478,23.43336124,183.0,182.98,6.1]
[1736806251280,20.69996124,183.0,182.98,6.1]
[1736806251477,2.7336,182.99,182.98,6.1]
[1736806251781,151.42778092,183.09,182.98,6.1]
[1736806251981,2.7331,183.03,182.99,2.7335]
[1736806252281,20.69996124,183.03,182.98,6.1]
[1736806252479,2.7334,183.01,182.98,6.1]
[1736806255184,2.7332,183.02,182.98,8.8337]
[1736806255384,20.69996124,183.03,182.98,6.1]
[1736806255983,2.7334,183.01,182.98,6.1]
[1736806256386,151.42778092,183.09,182.98,6.1]
[1736806256683,20.69996124,183.07,182.98,6.1]
[1736806256985,2.7328,183.04,183.01,2.7332]
[1736806257180,20.69996124,183.07,182.98,6.1]
[1736806257375,20.69995752,183.07,182.98,6.1]
[1736806257581,2.7332,183.02,182.99,2.7335]
[1736806258386,2.7329,183.04,183.01,2.7333]
[1736806258583,20.69995752,183.07,182.98,6.1]
[1736806258987,2.7333,183.01,182.99,2.7335]
[1736806259188,20.69996124,183.04,182.99,2.7335]
[1736806260190,2.7332,183.02,182.99,2.7335]
[1736806260887,20.69996124,183.09,182.98,6.1]
[1736806261191,154.77988092,183.1,182.98,6.1]
[1736806261381,15.63217537,183.09,182.98,6.1]
[1736806261584,12.89997537,183.09,182.98,6.1]
[1736806261985,2.7325,183.07,183.02,2.733]
[1736806262385,12.89997537,183.06,182.94,12.89997537]
[1736806262590,12.89997537,183.03,182.95,6.1]
[1736806262985,3.3521,183.1,182.92,14.52077537]
[1736806262986,12.89997537,183.0,182.92,1.6208]
[1736806263192,12.89997537,182.97,182.92,1.6208]
[1736806263587,12.89997537,182.97,182.93,2.7343]
[1736806263988,12.89997537,183.0,182.92,1.6208]
[1736806264388,12.89997537,183.0,182.93,6.12]
[1736806264788,12.89997537,183.0,182.95,2.7341]
[1736806264986,12.89997537,183.0,182.93,6.12]
[1736806265391,12.89997537,183.0,182.96,2.734]
[1736806265583,12.89997537,183.03,182.93,6.12]
[1736806265789,154.77988092,183.1,182.93,6.12]
[1736806265989,12.89997537,183.04,182.93,6.12]
[1736806267092,2.7333,183.01,182.96,2.7339]
[1736806267589,151.42778092,183.11,182.95,12.89997537]
[1736806267790,12.89997537,183.06,182.95,12.89997537]
[1736806268393,7.23628755,183.1,182.94,6.14]
[1736806268394,12.89997537,183.03,182.94,6.14]
[1736806268990,2.7336,182.99,182.94,8.8742]
[1736806269887,2.7336,182.99,182.94,2.7342]
[1736806270292,2.7336,182.99,182.93,6.14]
[1736806270489,2.7336,182.99,182.95,2.7341]
[1736806272694,2.7339,182.97,182.93,6.14]
[1736806273297,2.7339,182.97,182.93,8.8744]
[1736806274995,2.7339,182.97,182.93,2.7344]
[1736806275199,12.89997537,182.97,182.88,6.12]
[1736806275598,2.7344,182.94,182.89,2.735]
[1736806276198,2.735,182.9,182.85,2.7355]
[1736806276405,2.735,182.9,182.84,6.12]
[1736806277206,2.7351,182.89,182.84,6.12]
[1736806277507,12.89997537,182.94,182.84,6.12]
[1736806278096,2.735,182.9,182.85,2.7355]
[1736806278902,2.7352,182.89,182.84,2.7358]
[1736806279103,12.89997537,182.88,182.79,93.78]
[1736806279401,2.7358,182.84,182.79,93.78]
[1736806279604,12.89997537,182.88,182.79,93.78]
[1736806279908,2.7355,182.86,182.8,2.7363]
[1736806281108,2.7354,182.87,182.82,2.7361]
[1736806281503,2.7354,182.87,182.79,93.78]
[1736806281905,12.89997537,182.88,182.81,2.7362]
[1736806282301,12.89997537,182.88,182.79,93.78]
[1736806282499,2.7354,182.87,182.82,2.7361]
[1736806283005,2.7355,182.86,182.81,2.7361]
[1736806283307,12.89997537,182.88,182.79,93.78]
[1736806283898,2.7356,182.86,182.79,93.78]
[1736806284512,2.7356,182.86,182.81,2.7361]
[1736806284712,2.7356,182.86,182.79,93.78]
[1736806284908,12.89997537,182.88,182.8,2.7364]
[1736806285611,2.7356,182.86,182.8,2.7364]
[1736806285813,12.89997537,182.88,182.8,2.7364]
[1736806286313,2.7358,182.85,182.8,2.7364]
[1736806287015,12.89997537,182.85,182.79,93.78]
[1736806287508,12.89997537,182.85,182.79,96.5165]
[1736806287705,12.89997537,182.85,182.79,93.78]
[1736806288109,2.7361,182.83,182.79,96.5164]
[1736806288410,5.4679,182.97,182.8,12.89997537]
[1736806288612,2.7353,182.88,182.85,2.7356]
[1736806288811,12.89997537,182.92,182.85,2.7356]
[1736806289213,2.7354,182.87,182.8,12.89997537]
[1736806289810,2.7354,182.87,182.83,2.7359]
[1736806291011,2.7356,182.86,182.82,2.7361]
[1736806291313,12.89997537,182.89,182.82,2.7361]
[1736806291816,12.89997537,182.89,182.79,95.3549]
[1736806292808,2.7355,182.87,182.83,2.7359]
[1736806293013,12.89997537,182.89,182.83,2.7359]
[1736806293214,12.89997537,182.89,182.79,95.3549]
[1736806294520,12.89997537,182.89,182.83,2.7358]
[1736806294720,12.89997537,182.89,182.79,95.3549]
[1736806295122,2.7355,182.86,182.82,2.736]
[1736806295722,2.7355,182.86,182.79,95.3549]
[1736806295923,2.7355,182.86,182.83,2.7359]
[1736806296221,2.7355,182.86,182.79,95.3549]
[1736806296417,2.7355,182.86,182.82,2.7361]
[1736806297419,2.7355,182.86,182.79,95.3549]
[1736806297620,12.89997537,182.89,182.8,12.89997537]
[1736806297820,12.89997537,182.92,182.8,12.89997537]
[1736806298220,2.7351,182.89,182.8,12.89997537]
[1736806298422,12.89997537,182.92,182.8,12.89997537]
[1736806299129,2.7353,182.88,182.84,2.7358]
[1736806299423,2.7353,182.88,182.83,6.06]
[1736806300322,2.7353,182.88,182.84,2.7358]
[1736806302425,12.89997537,182.89,182.79,95.3549]
[1736806303128,2.7355,182.86,182.81,2.7362]
[1736806303632,12.89997537,182.89,182.79,95.3549]
[1736806303925,12.89997537,182.83,182.79,93.78]
[1736806304330,2.7364,182.8,182.79,93.78]
[1736806304827,2.7368,182.78,182.72,95.69192583]
[1736806305022,2.7368,182.78,182.72,101.75192583]
[1736806305726,12.89997537,182.83,182.72,101.75192583]
[1736806305923,12.89997537,182.8,182.72,95.69192583]
[1736806306127,3.212,182.86,182.72,108.5919012]
[1736806306329,2.7362,182.82,182.75,2.737]
[1736806306525,12.89997537,182.85,182.75,12.89997537]
[1736806306726,3.212,182.86,182.76,1.5861]
[1736806307122,2.7359,182.84,182.79,2.7364]
[1736806307527,3.212,182.86,182.79,2.7364]
[1736806307724,12.89997537,182.85,182.76,1.5861]
[1736806308026,12.89997537,182.82,182.76,1.5861]
[1736806308229,12.89997537,182.82,182.75,6.06]
[1736806308628,12.89997537,182.85,182.75,6.06]
[1736806308830,2.7362,182.82,182.78,2.7366]
[1736806309133,12.89997537,182.85,182.75,6.06]
[1736806309329,2.736,182.83,182.75,6.06]
[1736806309633,12.89997537,182.85,182.79,2.7364]
[1736806309828,2.7362,182.82,182.75,6.06]
[1736806310527,2.7362,182.82,182.78,2.7366]
[1736806311031,12.89997537,182.85,182.75,6.06]
[1736806311834,2.7365,182.8,182.76,2.7369]
[1736806312636,2.7366,182.79,182.76,2.7369]
[1736806312826,2.7366,182.79,182.75,6.06]
[1736806313032,2.7366,182.79,182.75,8.7971]
[1736806313729,2.7365,182.8,182.76,2.737]
[1736806314332,2.7366,182.79,182.75,8.7971]
[1736806314934,2.7366,182.79,182.75,2.7371]
[1736806316238,2.7366,182.79,182.73,6.06]
[1736806316239,2.7365,182.8,182.76,2.737]
[1736806316533,12.89997537,182.85,182.73,6.06]
[1736806316728,12.89997537,182.85,182.75,2.7371]
[1736806316930,12.89997537,182.82,182.73,6.04]
[1736806317536,2.7368,182.78,182.74,2.7373]
[1736806319828,12.89997537,182.79,182.61,191.0]
[1736806320034,12.89997537,182.76,182.67,1.7078]
[1736806320435,2.7376,182.73,182.68,96.5781]
[1736806320739,2.7376,182.73,182.68,93.84]
[1736806321240,2.7373,182.74,182.69,2.7379]
[1736806321941,164.32775629,182.82,182.7,12.89997537]
[1736806322536,2.7368,182.78,182.74,2.7372]
[1736806322736,12.89997537,182.82,182.72,6.04]
[1736806323036,2.7363,182.81,182.78,2.7367]
[1736806323238,12.89997537,182.85,182.76,12.89997537]
[1736806323441,208.0210012,182.87,182.77,1.6317]
[1736806323746,12.89997537,182.88,182.77,1.6317]
[1736806324036,12.89997537,182.88,182.77,3.3456]
[1736806324242,2.7356,182.86,182.82,2.7361]
[1736806324631,12.89997537,182.88,182.82,2.7361]
[1736806324836,2.7357,182.85,182.81,2.7362]
[1736806325743,12.89997537,182.88,182.79,6.04]
[1736806325945,227.14167139,182.95,182.82,12.89997537]
[1736806326341,227.14167139,182.95,182.79,18.93997537]
[1736806326342,223.40169644,182.94,182.89,2.7349]
[1736806326748,223.40169644,182.94,182.87,6.04]
[1736806326749,3.2203,182.96,182.87,6.04]
[1736806326943,2.7344,182.94,182.87,8.7753]
[1736806327143,16.12027537,182.96,182.87,8.7753]
[1736806327749,2.7346,182.92,182.87,8.7753]
[1736806328143,2.7346,182.92,182.88,2.7352]
[1736806328343,2.7346,182.92,182.87,6.04]
[1736806329248,2.7345,182.93,182.88,2.7352]
[1736806329449,12.89997537,182.98,182.87,6.04]
[1736806331145,2.7342,182.95,182.87,6.04]
[1736806333167,2.7342,182.95,182.9,2.7348]
[1736806333364,12.89997537,182.95,182.87,6.02]
[1736806333760,2.7345,182.94,182.89,2.7351]
[1736806334655,2.7345,182.93,182.89,2.7351]
[1736806334853,2.7345,182.93,182.88,2.7352]
[1736806337964,2.7345,182.93,182.86,1.679]
[1736806337965,12.89997537,182.95,182.86,1.679]
[1736806338367,12.89997537,182.92,182.84,1.6027]
[1736806338568,12.89997537,182.92,182.83,101.5741]
[1736806338960,12.89997537,182.92,182.83,95.5541]
[1736806339163,12.89997537,182.89,182.83,93.86]
[1736806339869,2.7353,182.88,182.83,96.5959]
[1736806340469,2.7349,182.9,182.83,93.86]
[1736806340968,2.7344,182.94,182.9,2.7349]
[1736806341370,2.7344,182.94,182.84,12.89997537]
[1736806341674,12.89997537,182.98,182.87,12.89997537]
[1736806341866,12.89997537,182.98,182.88,7.7398]
[1736806342261,2.7341,182.96,182.91,2.7347]
[1736806342771,12.89997537,182.98,182.9,2.7349]
[1736806343072,12.89997537,182.98,182.88,7.7398]
[1736806343674,2.7344,182.94,182.9,2.7349]
[1736806347364,12.89997537,182.98,182.88,7.7398]
[1736806347572,12.89997537,183.01,182.9,12.89997537]
[1736806348568,12.89997537,183.01,182.91,1.6522]
[1736806348773,2.7336,182.99,182.95,2.7341]
[1736806348965,12.89997537,183.04,182.91,1.6522]
[1736806349171,2.7333,183.01,182.94,2.7342]
[1736806349366,12.89997537,183.04,182.95,6.02]
[1736806349570,3.2823,183.05,182.95,6.02]
[1736806349770,2.7334,183.01,182.97,2.7338]
[1736806349971,12.89997537,183.03,182.95,6.02]
[1736806350569,2.7335,183.0,182.96,2.734]
[1736806350966,3.2823,183.05,182.99,2.7334]
[1736806351172,1.7217,183.05,182.95,6.02]
[1736806351574,14.62167537,183.05,182.95,6.02]
[1736806353279,2.7332,183.02,182.98,2.7337]
[1736806354676,14.62167537,183.05,182.95,6.02]
[1736806354876,12.89997537,183.05,183.0,2.7334]
[1736806355778,12.89997537,183.05,182.96,1.6126]
[1736806356170,2.7334,183.01,182.96,1.6126]
[1736806356376,12.89997537,183.02,182.96,1.6126]
[1736806356575,12.89997537,183.02,182.95,8.754]
[1736806357570,12.89997537,182.99,182.88,1.5664]
[1736806357775,12.89997537,183.06,182.88,1.5664]
[1736806357776,12.89997537,182.96,182.88,1.5664]
[1736806357975,2.7345,182.93,182.88,1.5664]
[1736806358178,2.7345,182.93,182.89,2.735]
[1736806358575,2.7344,182.94,182.89,2.735]
[1736806358775,12.89997537,182.93,182.85,8.7556]
[1736806358980,12.89997537,182.93,182.85,6.02]
[1736806359680,2.7348,182.91,182.86,2.7354]
[1736806362577,3.1374,182.95,182.86,12.89997537]
[1736806363181,2.7344,182.94,182.89,2.7349]
[1736806366384,3.1374,182.95,182.85,6.02]
[1736806366583,2.7349,182.91,182.87,2.7352]
[1736806366784,12.89997537,182.93,182.85,6.02]
[1736806367285,12.89997537,182.93,182.84,3.2149]
[1736806367476,12.89997537,182.93,182.84,9.2349]
[1736806367676,2.7348,182.91,182.86,2.7354]
[1736806368073,2.7348,182.91,182.84,9.2349]
[1736806368275,2.7348,182.91,182.87,2.7353]
[1736806368480,2.7346,182.92,182.84,9.2349]
[1736806368884,2.7346,182.92,182.87,2.7352]
[1736806369080,2.7344,182.94,182.85,12.89997537]
[1736806369387,2.7344,182.94,182.89,2.735]
[1736806369883,3.1374,182.95,182.85,12.89997537]
[1736806370281,2.7347,182.92,182.88,2.7351]
[1736806370581,3.1374,182.95,182.85,12.89997537]
[1736806370776,2.7344,182.94,182.85,12.89997537]
[1736806370982,3.1374,182.95,182.89,2.735]
[1736806371375,2.7345,182.93,182.89,2.735]
[1736806371781,3.1374,182.95,182.85,12.89997537]
[1736806371978,2.7344,182.94,182.85,12.89997537]
[1736806372183,3.1374,182.95,182.85,12.89997537]
[1736806372781,2.7345,182.93,182.89,2.7349]
[1736806374779,2.7346,182.92,182.85,12.89997537]
[1736806375386,2.7346,182.92,182.88,2.7351]
[1736806376786,3.1374,182.95,182.88,2.7351]
[1736806376985,2.7348,182.91,182.88,2.7351]
[1736806377186,3.1374,182.95,182.84,9.2349]
[1736806377391,12.89997537,182.93,182.87,2.7353]
[1736806378088,12.89997537,182.9,182.83,93.86]
[1736806378781,2.7353,182.88,182.83,96.5958]
[1736806379187,12.89997537,182.9,182.83,93.86]
[1736806379484,2.7355,182.87,182.83,96.5959]
[1736806379889,2.7356,182.86,182.83,96.5959]
[1736806380287,2.7356,182.86,182.83,93.86]
[1736806381088,2.7354,182.87,182.83,96.5959]
[1736806382387,12.89997537,182.9,182.83,93.86]
[1736806382683,12.89997537,182.87,182.76,7.6145]
[1736806382987,2.7357,182.85,182.76,20.51447537]
[1736806383380,12.89997537,182.87,182.76,20.51447537]
[1736806383989,2.7356,182.86,182.82,2.736]
[1736806384187,12.89997537,182.9,182.79,12.89997537]
[1736806384581,12.89997537,182.93,182.82,12.89997537]
[1736806384784,14.56967537,182.94,182.83,7.7079]
[1736806384983,2.7346,182.92,182.88,2.7352]
[1736806385181,12.89997537,182.94,182.83,11.0473]
[1736806385379,12.89997537,182.91,182.83,7.7079]
[1736806386089,2.7354,182.87,182.83,10.4438]
[1736806386290,12.89997537,182.88,182.79,12.89997537]
[1736806386487,12.89997537,182.85,182.76,6.02]
[1736806386680,2.7361,182.83,182.78,2.7367]
[1736806387088,6.02,182.92,182.77,12.89997537]
[1736806387089,12.89997537,182.88,182.77,12.89997537]
[1736806387793,2.7355,182.87,182.82,2.736]
[1736806388184,2.7355,182.87,182.77,12.89997537]
[1736806388480,14.47407537,182.91,182.77,12.89997537]
[1736806388685,2.7354,182.87,182.77,12.89997537]
[1736806388886,154.56518092,182.95,182.8,12.89997537]
[1736806388887,3.1374,182.95,182.8,12.89997537]
[1736806389090,12.89997537,182.92,182.8,12.89997537]
[1736806389391,2.7351,182.89,182.8,12.89997537]
[1736806389987,12.89997537,182.92,182.8,12.89997537]
[1736806390287,2.7352,182.89,182.84,2.7357]
[1736806391290,12.89997537,182.92,182.83,2.7359]
[1736806392082,12.89997537,182.92,182.82,2.7361]
[1736806392491,12.89997537,182.92,182.83,2.7359]
[1736806392989,2.7351,182.89,182.84,2.7357]
[1736806393793,12.89997537,182.86,182.76,6.02]
[1736806394194,12.89997537,182.8,182.67,220.94803201]
[1736806394397,12.89997537,182.8,182.7,1.7087]
[1736806394697,12.89997537,182.8,182.74,2.7373]
[1736806394891,12.89997537,182.8,182.7,7.7287]
[1736806395290,2.7368,182.78,182.73,2.7374]
[1736806395795,12.89997537,182.8,182.74,2.7373]
[1736806395796,2.7366,182.79,182.74,2.7373]
[1736806396191,1.6449,182.85,182.7,20.62867537]
[1736806396192,12.89997537,182.83,182.7,20.62867537]
[1736806396389,1.6449,182.85,182.73,12.89997537]
[1736806396597,12.89997537,182.84,182.73,12.89997537]
[1736806398090,2.7362,182.82,182.77,2.7368]
[1736806398297,12.89997537,182.81,182.7,20.62867537]
[1736806398599,2.7364,182.8,182.75,2.737]
[1736806399495,2.7363,182.81,182.73,12.89997537]
[1736806400195,2.7363,182.81,182.76,2.7369]
[1736806400697,2.7366,182.79,182.74,2.7372]
[1736806400996,12.89997537,182.81,182.74,2.7372]
[1736806402096,12.89997537,182.81,182.73,2.7374]
[1736806402298,12.89997537,182.78,182.7,7.7287]
[1736806402488,2.7367,182.79,182.7,20.62867537]
[1736806402695,12.89997537,182.81,182.7,20.62867537]
[1736806403193,2.737,182.77,182.7,20.62867537]
[1736806403397,12.89997537,182.78,182.7,7.7287]
[1736806403798,12.89997537,182.78,182.7,1.7087]
[1736806404099,2.7371,182.76,182.71,96.5576]
[1736806404601,2.7372,182.75,182.71,96.5576]
[1736806404797,12.89997537,182.78,182.72,2.7376]
[1736806406093,2.7373,182.75,182.72,2.7376]
[1736806406497,12.89997537,182.78,182.73,2.7373]
[1736806406790,1.6449,182.85,182.71,93.82]
[1736806406791,12.89997537,182.82,182.71,93.82]
[1736806407392,2.7367,182.79,182.71,93.82]
[1736806407890,12.89997537,182.82,182.71,93.82]
[1736806408401,2.7366,182.79,182.75,2.7371]
[1736806408697,12.89997537,182.82,182.75,2.7371]
[1736806409305,2.7368,182.78,182.75,2.7371]
[1736806411400,12.89997537,182.82,182.71,93.82]
[1736806411803,2.7368,182.78,182.74,2.7372]
[1736806412002,12.89997537,182.82,182.72,12.89997537]
[1736806412702,2.7365,182.8,182.72,12.89997537]
[1736806414204,2.7365,182.8,182.76,2.7369]
[1736806414498,1.6105,182.88,182.75,6.02]
[1736806414701,14.51047537,182.88,182.78,12.89997537]
[1736806414893,12.89997537,182.88,182.79,3.2531]
[1736806416102,2.7358,182.85,182.81,2.7362]
[1736806417602,2.736,182.83,182.79,5.9895]
[1736806417900,12.89997537,182.85,182.79,1.6211]
[1736806418901,2.7361,182.83,182.79,1.6211]
[1736806420306,2.7361,182.83,182.79,4.3576]
[1736806422906,178.10407272,182.93,182.79,14.52107537]
[1736806423109,176.52187272,182.93,182.82,12.89997537]
[1736806423300,179.25637272,182.93,182.87,2.7353]
[1736806423500,151.42778092,182.95,182.85,12.89997537]
[1736806423910,2.7347,182.92,182.88,2.7352]
[1736806424112,151.42778092,182.95,182.88,2.7352]
[1736806424310,14.53647537,182.96,182.88,2.7352]
[1736806424512,2.7346,182.93,182.88,2.7352]
[1736806425302,2.7346,182.92,182.88,2.7352]
[1736806425913,2.7345,182.93,182.89,2.735]
[1736806426519,2.7345,182.93,182.88,2.7352]
[1736806427816,2.7345,182.93,182.87,2.7353]
[1736806428217,2.7347,182.92,182.87,2.7353]
[1736806429218,2.7348,182.91,182.87,2.7353]
[1736806429822,12.89997537,182.95,182.85,6.02]
[1736806430122,12.89997537,182.95,182.86,2.7355]
[1736806431129,2.7349,182.9,182.86,2.7355]
[1736806431812,2.7349,182.9,182.81,93.84]
[1736806431813,12.89997537,182.89,182.81,93.84]
[1736806432012,2.7358,182.85,182.81,93.84]
[1736806432223,12.89997537,182.86,182.81,93.84]
[1736806432722,2.7359,182.84,182.81,93.84]
[1736806434818,2.7359,182.84,182.79,7.6411]
[1736806435021,12.89997537,182.86,182.79,7.6411]
[1736806435219,2.7357,182.85,182.79,7.6411]
[1736806435425,12.89997537,182.86,182.79,7.6411]
[1736806435626,12.89997537,182.86,182.81,2.7362]
[1736806436027,12.89997537,182.86,182.79,7.6411]
[1736806436227,12.89997537,182.86,182.8,2.7364]
[1736806437127,2.7359,182.84,182.8,2.7364]
[1736806440625,12.89997537,182.88,182.79,1.6211]
[1736806440827,12.89997537,182.91,182.81,12.89997537]
[1736806442523,1.6365,182.96,182.81,12.89997537]
[1736806442524,12.89997537,182.94,182.81,12.89997537]
[1736806442927,12.89997537,182.94,182.84,12.89997537]
[1736806443329,12.89997537,182.94,182.85,6.02]
[1736806443831,12.89997537,182.94,182.86,1.6729]
[1736806444229,2.7346,182.92,182.88,2.7351]
[1736806446830,12.89997537,182.95,182.89,2.735]
[1736806447026,2.7345,182.93,182.86,1.6729]
[1736806447424,12.89997537,182.95,182.86,1.6729]
[1736806447629,2.7348,182.91,182.86,1.6729]
[1736806448526,12.89997537,182.95,182.86,1.6729]
[1736806448934,2.7345,182.93,182.89,2.735]
[1736806450531,227.14167139,183.06,182.87,12.89997537]
[1736806450724,3.2982,183.03,182.9,12.89997537]
[1736806450931,12.89997537,183.01,182.9,12.89997537]
[1736806451325,2.7338,182.98,182.93,2.7343]
[1736806451529,12.89997537,183.01,182.93,2.7343]
[1736806452036,2.7339,182.97,182.93,2.7343]
[1736806452637,2.7339,182.97,182.94,2.7343]
[1736806452936,12.89997537,183.0,182.92,6.02]
[1736806453136,12.89997537,183.0,182.94,2.7342]
[1736806453732,2.7339,182.97,182.94,2.7342]
[1736806454635,2.7339,182.97,182.93,2.7344]
[1736806457337,12.89997537,182.97,182.86,1.6729]
[1736806457536,12.89997537,182.94,182.87,6.02]
[1736806457738,12.89997537,182.97,182.87,6.02]
[1736806457939,2.734,182.96,182.92,2.7345]
[1736806458139,3.2982,183.03,182.92,12.89997537]
[1736806458538,151.42778092,183.04,182.89,12.89997537]
[1736806458539,154.16078092,183.04,182.99,2.7334]
[1736806458837,2.733,183.04,182.99,2.7334]
[1736806459237,2.7327,183.05,183.0,2.7333]
[1736806459543,14.59967537,183.08,182.97,6.02]
[1736806460038,2.7327,183.05,183.0,2.7334]
[1736806460239,2.7327,183.05,182.97,6.02]
[1736806460935,2.7329,183.04,182.97,6.02]
[1736806461137,14.59967537,183.08,182.97,6.02]
[1736806462636,12.89997537,183.05,182.97,6.02]
[1736806462846,2.7331,183.03,182.98,2.7336]
[1736806463241,12.89997537,183.05,182.98,2.7336]
[1736806463444,2.733,183.03,182.98,2.7336]
[1736806463745,12.89997537,183.05,182.98,2.7336]
[1736806463934,12.89997537,183.05,182.97,6.02]
[1736806464133,2.7335,183.0,182.97,6.02]
[1736806464343,12.89997537,183.06,182.97,8.7537]
[1736806464741,2.7332,183.02,182.97,8.7537]
[1736806464942,12.89997537,183.06,182.97,8.7537]
[1736806465244,2.7333,183.01,182.97,8.7537]
[1736806465446,12.89997537,183.06,182.98,2.7337]
[1736806465639,1.6997,183.08,182.98,2.7337]
[1736806465840,2.7331,183.03,182.98,2.7337]
[1736806466041,12.89997537,183.07,182.98,2.7337]
[1736806466345,2.7331,183.03,182.98,2.7337]
[1736806466734,2.7331,183.03,182.99,2.7335]
[1736806467043,12.89997537,183.07,182.97,6.02]
[1736806467246,12.89997537,183.07,182.98,2.7337]
[1736806467737,2.7331,183.03,182.98,2.7337]
[1736806468449,12.89997537,183.07,182.97,6.02]
[1736806468940,1.6997,183.08,182.97,6.02]
[1736806469140,2.7328,183.05,183.01,2.7332]
[1736806471849,1.6997,183.08,182.98,12.89997537]
[1736806472049,2.733,183.03,183.0,2.7333]
[1736806472840,227.14167139,183.2,183.01,14.48387537]
[1736806473145,227.14167139,183.2,183.05,12.89997537]
[1736806473146,1.6612,183.16,183.05,12.89997537]
[1736806474250,12.89997537,183.15,183.02,6.0]
[1736806474451,12.89997537,183.12,183.02,6.0]
[1736806474649,2.732,183.1,183.05,2.7326]
[1736806474852,12.89997537,183.15,183.02,6.0]
[1736806475353,12.89997537,183.15,183.03,12.89997537]
[1736806476050,2.7316,183.12,183.07,2.7323]
[1736806477253,2.7315,183.13,183.08,2.7322]
[1736806478754,2.7315,183.13,183.06,2.7325]
[1736806478955,2.7315,183.13,183.03,12.89997537]
[1736806479255,1.6612,183.16,183.09,2.732]
[1736806480152,1.6612,183.16,183.08,2.7322]
[1736806480750,12.89997537,183.15,183.04,1.7145]
[1736806481756,2.7317,183.12,183.07,2.7324]
[1736806482260,2.7318,183.11,183.07,2.7324]
[1736806487362,2.7318,183.11,183.07,10.9824763]
[1736806493273,2.7313,183.14,183.1,2.7319]
[1736806493469,9.9112763,183.16,183.09,14.2500763]
[1736806493874,8.2500763,183.14,183.09,14.2500763]
[1736806494076,1.6612,183.16,183.09,14.2500763]
[1736806494277,8.2500763,183.14,183.09,14.2500763]
[1736806494479,2.7315,183.13,183.09,14.2500763]
[1736806494677,8.2500763,183.12,182.94,8.2026]
[1736806494868,8.2500763,183.1,183.02,6.0]
[1736806495071,8.2500763,183.1,183.04,8.2500763]
[1736806495276,1.6612,183.16,183.06,8.2500763]
[1736806495479,8.2500763,183.13,183.06,8.2500763]
[1736806496675,2.7318,183.11,183.07,2.7324]
[1736806497178,2.7316,183.13,183.08,10.9821763]
[1736806497571,2.7316,183.13,183.08,8.2500763]
[1736806500073,8.2500763,183.12,183.06,8.2500763]
[1736806500682,1.6612,183.16,183.06,8.2500763]
[1736806500881,8.2500763,183.13,183.06,8.2500763]
[1736806501579,2.732,183.1,183.06,10.9824763]
[1736806501981,8.2500763,183.13,183.06,8.2500763]
[1736806502180,2.7322,183.09,183.06,8.2500763]
[1736806502388,1.6612,183.16,183.06,8.2500763]
[1736806502588,8.2500763,183.14,183.06,8.2500763]
[1736806503088,2.7317,183.12,183.08,2.7321]
[1736806503282,10.9817763,183.12,183.08,2.7321]
[1736806503483,8.2500763,183.1,183.02,6.0]
[1736806503786,8.2500763,183.1,183.03,8.2500763]
[1736806504183,2.7322,183.08,183.05,2.7326]
[1736806505189,2.7322,183.08,183.04,2.7328]
[1736806505381,2.7324,183.07,183.03,8.2500763]
[1736806505688,8.2500763,183.06,183.0,8.2500763]
[1736806505991,2.7331,183.02,183.0,8.2500763]
[1736806506188,2.7331,183.02,182.99,99.76]
[1736806506689,2.7334,183.0,182.99,93.76]
[1736806507485,8.2500763,183.0,182.87,93.74]
[1736806507789,8.2500763,182.97,182.91,8.2500763]
[1736806507989,2.7342,182.95,182.91,8.2500763]
[1736806508885,8.2500763,182.97,182.87,93.74]
[1736806509090,2.7344,182.94,182.89,8.2500763]
[1736806509284,3.4236,183.01,182.88,6.0]
[1736806509285,12.91596902,182.98,182.88,6.0]